[Event "Titled Tuesday Blitz June 21 Late 2022"]
[White "Dilmukhametov, Artur"]
[Black "Kanyamarala, Tarun"]
[WhiteFideId "24179922"]
[BlackFideId "45004714"]
[WhiteElo "2206"]
[BlackElo "2219"]
[Result "1-0"]
[Round "05"]
[TimeControl "180+1"]
[Date "2022.06.22"]
[WhiteClock "0:01:27"]
[BlackClock "0:00:01"]

1. e4 {[%clk 0:02:51]}  c5 {[%clk 0:03:00]} 2. Nf3 {[%clk 0:02:50]}  d6 {[%clk 0:03:00]} 3. Bb5+ {[%clk 0:02:50]}  Nc6 {[%clk 0:02:57]} 4. d4 {[%clk 0:02:50]}  cxd4 {[%clk 0:02:52]} 5. Nxd4 {[%clk 0:02:49]}  Bd7 {[%clk 0:02:53]} 6. O-O {[%clk 0:02:49]}  Nf6 {[%clk 0:02:52]} 7. Nc3 {[%clk 0:02:49]}  e6 {[%clk 0:02:42]} 8. Be3 {[%clk 0:02:47]}  Be7 {[%clk 0:02:41]} 9. h3 {[%clk 0:02:47]}  O-O {[%clk 0:02:40]} 10. Be2 {[%clk 0:02:48]}  a6 {[%clk 0:02:30]} 11. f4 {[%clk 0:02:48]}  Nxd4 {[%clk 0:02:28]} 12. Bxd4 {[%clk 0:02:47]}  Bc6 {[%clk 0:02:25]} 13. Bf3 {[%clk 0:02:47]}  Rc8 {[%clk 0:02:22]} 14. a4 {[%clk 0:02:47]}  b5 {[%clk 0:02:12]} 15. a5 {[%clk 0:02:46]}  b4 {[%clk 0:02:09]} 16. Bb6 {[%clk 0:02:46]}  Qd7 {[%clk 0:01:44]} 17. Na2 {[%clk 0:02:45]}  b3 {[%clk 0:01:31]} 18. Nc3 {[%clk 0:02:45]}  bxc2 {[%clk 0:01:26]} 19. Qxc2 {[%clk 0:02:46]}  Qb7 {[%clk 0:01:19]} 20. Rfe1 {[%clk 0:02:45]}  d5 {[%clk 0:01:11]} 21. e5 {[%clk 0:02:39]}  Nd7 {[%clk 0:01:10]} 22. Bf2 {[%clk 0:02:37]}  Nc5 {[%clk 0:01:03]} 23. Rad1 {[%clk 0:02:20]}  Nb3 {[%clk 0:00:59]} 24. f5 {[%clk 0:01:56]}  Nxa5 {[%clk 0:00:58]} 25. f6 {[%clk 0:01:57]}  gxf6 {[%clk 0:00:57]} 26. Rd4 {[%clk 0:01:56]}  f5 {[%clk 0:00:53]} 27. Qd2 {[%clk 0:01:48]}  Nb3 {[%clk 0:00:45]} 28. Qh6 {[%clk 0:01:45]}  Nxd4 {[%clk 0:00:42]} 29. Bxd4 {[%clk 0:01:46]}  Kh8 {[%clk 0:00:25]} 30. Bh5 {[%clk 0:01:46]}  Bh4 {[%clk 0:00:09]} 31. Bxf7 {[%clk 0:01:37]}  Rxf7 {[%clk 0:00:06]} 32. Qxh4 {[%clk 0:01:37]}  Rg8 {[%clk 0:00:05]} 33. Ne2 {[%clk 0:01:37]}  f4 {[%clk 0:00:05]} 34. Nxf4 {[%clk 0:01:36]}  Qd7 {[%clk 0:00:03]} 35. Nh5 {[%clk 0:01:36]}  Rf5 {[%clk 0:00:01]} 36. Nf6 {[%clk 0:01:36]}  Qf7 {[%clk 0:00:01]} 37. Be3 {[%clk 0:01:27]} 1-0


[Site "https://www.chess.com"]

[Event "Titled Tuesday Blitz June 21 Late 2022"]
[White "Do Valle Cardoso, Lucas"]
[Black "Mortazavi, Ali"]
[WhiteFideId "2163144"]
[BlackFideId "401323"]
[WhiteElo "2277"]
[BlackElo "2339"]
[Result "0-1"]
[Round "05"]
[TimeControl "180+1"]
[Date "2022.06.22"]
[WhiteClock "0:00:14"]
[BlackClock "0:00:30"]

1. d4 {[%clk 0:02:56]}  Nf6 {[%clk 0:02:59]} 2. c4 {[%clk 0:02:54]}  g6 {[%clk 0:02:59]} 3. Nc3 {[%clk 0:02:54]}  Bg7 {[%clk 0:03:00]} 4. e4 {[%clk 0:02:54]}  O-O {[%clk 0:03:01]} 5. Nf3 {[%clk 0:02:54]}  d6 {[%clk 0:03:02]} 6. Be2 {[%clk 0:02:55]}  Bg4 {[%clk 0:03:02]} 7. Ng1 {[%clk 0:02:53]}  Bc8 {[%clk 0:03:01]} 8. Nf3 {[%clk 0:02:53]}  e5 {[%clk 0:03:01]} 9. d5 {[%clk 0:02:53]}  a5 {[%clk 0:03:00]} 10. Bg5 {[%clk 0:02:53]}  h6 {[%clk 0:03:00]} 11. Bh4 {[%clk 0:02:53]}  Na6 {[%clk 0:03:00]} 12. Nd2 {[%clk 0:02:53]}  Qe8 {[%clk 0:03:00]} 13. O-O {[%clk 0:02:53]}  Nh7 {[%clk 0:02:59]} 14. a3 {[%clk 0:02:51]}  f5 {[%clk 0:02:58]} 15. f3 {[%clk 0:02:47]}  h5 {[%clk 0:02:56]} 16. b4 {[%clk 0:02:44]}  Bh6 {[%clk 0:02:54]} 17. Bf2 {[%clk 0:02:31]}  Bd7 {[%clk 0:02:34]} 18. Rb1 {[%clk 0:02:30]}  axb4 {[%clk 0:02:26]} 19. axb4 {[%clk 0:02:31]}  Nf6 {[%clk 0:02:20]} 20. c5 {[%clk 0:02:17]}  g5 {[%clk 0:02:17]} 21. c6 {[%clk 0:02:16]}  bxc6 {[%clk 0:02:17]} 22. dxc6 {[%clk 0:02:16]}  Bc8 {[%clk 0:02:11]} 23. b5 {[%clk 0:02:01]}  Nc5 {[%clk 0:02:11]} 24. Bxc5 {[%clk 0:02:01]}  dxc5 {[%clk 0:02:11]} 25. Bc4+ {[%clk 0:02:01]}  Kh8 {[%clk 0:02:11]} 26. Nd5 {[%clk 0:01:58]}  Nxd5 {[%clk 0:02:07]} 27. Bxd5 {[%clk 0:01:52]}  g4 {[%clk 0:02:07]} 28. Nc4 {[%clk 0:01:30]}  Ra2 {[%clk 0:01:48]} 29. Qb3 {[%clk 0:01:09]}  Re2 {[%clk 0:01:40]} 30. Qd3 {[%clk 0:01:04]}  gxf3 {[%clk 0:01:40]} 31. Rxf3 {[%clk 0:00:54]}  Ra2 {[%clk 0:01:32]} 32. exf5 {[%clk 0:00:40]}  h4 {[%clk 0:01:09]} 33. b6 {[%clk 0:00:35]}  Rg8 {[%clk 0:01:04]} 34. Ne3 {[%clk 0:00:26]}  Ba6 {[%clk 0:00:51]} 35. Qf1 {[%clk 0:00:18]}  Bxf1 {[%clk 0:00:50]} 36. Bxa2 {[%clk 0:00:16]}  Bxe3+ {[%clk 0:00:48]} 37. Rxe3 {[%clk 0:00:17]}  Bxg2 {[%clk 0:00:45]} 38. Bxg8 {[%clk 0:00:17]}  Qxg8 {[%clk 0:00:43]} 39. Kf2 {[%clk 0:00:18]}  Qa2+ {[%clk 0:00:35]} 40. Re2 {[%clk 0:00:18]}  Qxb1 {[%clk 0:00:35]} 41. b7 {[%clk 0:00:14]}  Bxc6 {[%clk 0:00:30]} 0-1


[Site "https://www.chess.com"]

[Event "Titled Tuesday Blitz June 21 Late 2022"]
[White "Fiol, Fabrice"]
[Black "Needleman, Alejandro"]
[WhiteFideId "611670"]
[BlackFideId "100730"]
[WhiteElo "2460"]
[BlackElo "2306"]
[Result "0-1"]
[Round "05"]
[TimeControl "180+1"]
[Date "2022.06.22"]
[WhiteClock "0:00:06"]
[BlackClock "0:00:40"]

1. e4 {[%clk 0:02:59]}  c5 {[%clk 0:02:56]} 2. Nf3 {[%clk 0:02:56]}  e6 {[%clk 0:02:56]} 3. b4 {[%clk 0:02:50]}  cxb4 {[%clk 0:02:55]} 4. d4 {[%clk 0:02:49]}  Nf6 {[%clk 0:02:54]} 5. Bd3 {[%clk 0:02:45]}  d5 {[%clk 0:02:54]} 6. e5 {[%clk 0:02:44]}  Ne4 {[%clk 0:02:54]} 7. a3 {[%clk 0:02:39]}  Nc6 {[%clk 0:02:52]} 8. O-O {[%clk 0:02:37]}  Be7 {[%clk 0:02:49]} 9. Qe2 {[%clk 0:02:23]}  Nc3 {[%clk 0:02:45]} 10. Nxc3 {[%clk 0:02:23]}  bxc3 {[%clk 0:02:46]} 11. h4 {[%clk 0:02:22]}  Qa5 {[%clk 0:02:32]} 12. Be3 {[%clk 0:02:13]}  Bd7 {[%clk 0:02:22]} 13. Rfb1 {[%clk 0:02:13]}  Qc7 {[%clk 0:02:14]} 14. Rb3 {[%clk 0:02:08]}  Na5 {[%clk 0:02:11]} 15. Rbb1 {[%clk 0:02:05]}  h6 {[%clk 0:01:58]} 16. h5 {[%clk 0:02:05]}  O-O {[%clk 0:01:54]} 17. Nh2 {[%clk 0:01:58]}  f5 {[%clk 0:01:50]} 18. exf6 {[%clk 0:01:51]}  Bxf6 {[%clk 0:01:48]} 19. Ng4 {[%clk 0:01:47]}  e5 {[%clk 0:01:46]} 20. dxe5 {[%clk 0:01:20]}  Bxe5 {[%clk 0:01:39]} 21. Bxh6 {[%clk 0:01:00]}  Rae8 {[%clk 0:01:30]} 22. Nxe5 {[%clk 0:00:39]}  Qxe5 {[%clk 0:01:21]} 23. Qxe5 {[%clk 0:00:32]}  Rxe5 {[%clk 0:01:22]} 24. Be3 {[%clk 0:00:32]}  Rxh5 {[%clk 0:01:23]} 25. Bxa7 {[%clk 0:00:25]}  Bf5 {[%clk 0:01:23]} 26. Bxf5 {[%clk 0:00:15]}  Rhxf5 {[%clk 0:01:23]} 27. Rb5 {[%clk 0:00:14]}  Nc4 {[%clk 0:01:24]} 28. Rxb7 {[%clk 0:00:10]}  Nd6 {[%clk 0:01:23]} 29. Rd7 {[%clk 0:00:10]}  Ne4 {[%clk 0:01:24]} 30. f3 {[%clk 0:00:09]}  Ng3 {[%clk 0:01:21]} 31. Re1 {[%clk 0:00:07]}  R5f7 {[%clk 0:01:19]} 32. Ree7 {[%clk 0:00:06]}  Rxe7 {[%clk 0:01:16]} 33. Rxe7 {[%clk 0:00:07]}  Nf5 {[%clk 0:01:16]} 34. Re5 {[%clk 0:00:07]}  d4 {[%clk 0:01:05]} 35. g4 {[%clk 0:00:06]}  Ne3 {[%clk 0:01:05]} 36. Bxd4 {[%clk 0:00:05]}  Nxc2 {[%clk 0:01:06]} 37. Bxc3 {[%clk 0:00:05]}  Rxf3 {[%clk 0:01:05]} 38. Bb4 {[%clk 0:00:04]}  Rg3+ {[%clk 0:01:01]} 39. Kf2 {[%clk 0:00:03]}  Rxg4 {[%clk 0:01:02]} 40. Re8+ {[%clk 0:00:03]}  Kh7 {[%clk 0:01:01]} 41. Re2 {[%clk 0:00:02]}  Nxb4 {[%clk 0:01:01]} 42. axb4 {[%clk 0:00:02]}  Rxb4 {[%clk 0:01:01]} 43. Kg3 {[%clk 0:00:03]}  Kh6 {[%clk 0:00:59]} 44. Re5 {[%clk 0:00:03]}  g5 {[%clk 0:00:57]} 45. Re8 {[%clk 0:00:03]}  Rb3+ {[%clk 0:00:57]} 46. Kg4 {[%clk 0:00:03]}  Rb4+ {[%clk 0:00:58]} 47. Kg3 {[%clk 0:00:04]}  Kg6 {[%clk 0:00:59]} 48. Rf8 {[%clk 0:00:04]}  Rb3+ {[%clk 0:00:58]} 49. Kg2 {[%clk 0:00:05]}  Kh5 {[%clk 0:00:56]} 50. Re8 {[%clk 0:00:04]}  Kh4 {[%clk 0:00:56]} 51. Rh8+ {[%clk 0:00:03]}  Kg4 {[%clk 0:00:56]} 52. Ra8 {[%clk 0:00:04]}  Rb2+ {[%clk 0:00:55]} 53. Kg1 {[%clk 0:00:04]}  Kh3 {[%clk 0:00:54]} 54. Ra3+ {[%clk 0:00:04]}  Kh4 {[%clk 0:00:53]} 55. Ra4+ {[%clk 0:00:02]}  g4 {[%clk 0:00:54]} 56. Ra3 {[%clk 0:00:02]}  Rb1+ {[%clk 0:00:53]} 57. Kg2 {[%clk 0:00:02]}  Rb2+ {[%clk 0:00:54]} 58. Kg1 {[%clk 0:00:03]}  Rc2 {[%clk 0:00:55]} 59. Kf1 {[%clk 0:00:03]}  Rh2 {[%clk 0:00:53]} 60. Kg1 {[%clk 0:00:04]}  Rh3 {[%clk 0:00:53]} 61. Ra4 {[%clk 0:00:04]}  Rc3 {[%clk 0:00:45]} 62. Rb4 {[%clk 0:00:04]}  Kh3 {[%clk 0:00:45]} 63. Kf1 {[%clk 0:00:03]}  g3 {[%clk 0:00:42]} 64. Rb2 {[%clk 0:00:03]}  Rc1+ {[%clk 0:00:41]} 65. Ke2 {[%clk 0:00:03]}  g2 {[%clk 0:00:41]} 66. Rb3+ {[%clk 0:00:04]}  Kh2 {[%clk 0:00:40]} 67. Rb8 {[%clk 0:00:03]}  g1=Q {[%clk 0:00:40]} 68. Rh8+ {[%clk 0:00:03]}  Kg2 {[%clk 0:00:40]} 69. Rg8+ {[%clk 0:00:04]}  Kh3 {[%clk 0:00:41]} 70. Rh8+ {[%clk 0:00:04]}  Kg4 {[%clk 0:00:41]} 71. Rg8+ {[%clk 0:00:05]}  Kf5 {[%clk 0:00:41]} 72. Rg2 {[%clk 0:00:06]}  Qxg2+ {[%clk 0:00:40]} 0-1


[Site "https://www.chess.com"]

[Event "Titled Tuesday Blitz June 21 Late 2022"]
[White "Fishbein, Mitch"]
[Black "Marin Masis, Jose Esteban"]
[WhiteFideId "30922917"]
[BlackFideId "6508146"]
[WhiteElo "1939"]
[BlackElo "1710"]
[Result "1-0"]
[Round "05"]
[TimeControl "180+1"]
[Date "2022.06.22"]
[WhiteClock "0:01:25"]
[BlackClock "0:00:07"]

1. e4 {[%clk 0:03:00]}  c5 {[%clk 0:02:58]} 2. Nf3 {[%clk 0:03:00]}  Nc6 {[%clk 0:02:57]} 3. d3 {[%clk 0:02:53]}  g6 {[%clk 0:02:36]} 4. Nbd2 {[%clk 0:02:52]}  d5 {[%clk 0:02:24]} 5. g3 {[%clk 0:02:46]}  Nf6 {[%clk 0:02:18]} 6. Bg2 {[%clk 0:02:45]}  Bg7 {[%clk 0:02:14]} 7. O-O {[%clk 0:02:44]}  O-O {[%clk 0:02:10]} 8. c3 {[%clk 0:02:44]}  e5 {[%clk 0:02:04]} 9. Re1 {[%clk 0:02:41]}  h6 {[%clk 0:01:57]} 10. Qc2 {[%clk 0:02:34]}  Be6 {[%clk 0:01:40]} 11. exd5 {[%clk 0:02:31]}  Nxd5 {[%clk 0:01:38]} 12. Nc4 {[%clk 0:02:31]}  Qc7 {[%clk 0:01:35]} 13. a4 {[%clk 0:02:31]}  Rfe8 {[%clk 0:01:27]} 14. Bd2 {[%clk 0:02:30]}  Rad8 {[%clk 0:01:27]} 15. Rad1 {[%clk 0:02:30]}  a6 {[%clk 0:01:17]} 16. a5 {[%clk 0:02:23]}  Nxa5 {[%clk 0:01:08]} 17. Nxa5 {[%clk 0:02:22]}  Qxa5 {[%clk 0:01:06]} 18. Nxe5 {[%clk 0:02:22]}  Bf5 {[%clk 0:00:45]} 19. Bxd5 {[%clk 0:01:47]}  Rxd5 {[%clk 0:00:23]} 20. c4 {[%clk 0:01:46]}  Qxd2 {[%clk 0:00:18]} 21. Rxd2 {[%clk 0:01:40]}  Rdxe5 {[%clk 0:00:17]} 22. Rde2 {[%clk 0:01:39]}  Rxe2 {[%clk 0:00:14]} 23. Rxe2 {[%clk 0:01:40]}  Rxe2 {[%clk 0:00:13]} 24. Qxe2 {[%clk 0:01:41]}  Bd4 {[%clk 0:00:11]} 25. Kg2 {[%clk 0:01:37]}  b5 {[%clk 0:00:10]} 26. b3 {[%clk 0:01:36]}  bxc4 {[%clk 0:00:10]} 27. dxc4 {[%clk 0:01:37]}  a5 {[%clk 0:00:09]} 28. Qe8+ {[%clk 0:01:34]}  Kg7 {[%clk 0:00:09]} 29. Qd8 {[%clk 0:01:35]}  Bc3 {[%clk 0:00:09]} 30. Qc7 {[%clk 0:01:31]}  Bd4 {[%clk 0:00:08]} 31. Qxa5 {[%clk 0:01:31]}  Bc2 {[%clk 0:00:08]} 32. b4 {[%clk 0:01:30]}  Be4+ {[%clk 0:00:09]} 33. Kg1 {[%clk 0:01:29]}  cxb4 {[%clk 0:00:09]} 34. Qxb4 {[%clk 0:01:29]}  Bf6 {[%clk 0:00:09]} 35. c5 {[%clk 0:01:28]}  Bc6 {[%clk 0:00:09]} 36. Qb6 {[%clk 0:01:27]}  Bf3 {[%clk 0:00:08]} 37. c6 {[%clk 0:01:27]}  Bg4 {[%clk 0:00:08]} 38. c7 {[%clk 0:01:26]}  Bc8 {[%clk 0:00:07]} 39. Qb8 {[%clk 0:01:25]} 1-0


[Site "https://www.chess.com"]

[Event "Titled Tuesday Blitz June 21 Late 2022"]
[White "Florescu, Codrut-Constantin"]
[Black "Lashkin, Jegor"]
[WhiteFideId "1202200"]
[BlackFideId "13907808"]
[WhiteElo "2191"]
[BlackElo "2368"]
[Result "0-1"]
[Round "05"]
[TimeControl "180+1"]
[Date "2022.06.21"]
[WhiteClock "0:00:09"]
[BlackClock "0:00:07"]

1. d4 {[%clk 0:03:00]}  Nf6 {[%clk 0:02:59]} 2. Nf3 {[%clk 0:03:00]}  d5 {[%clk 0:02:59]} 3. c4 {[%clk 0:03:00]}  e6 {[%clk 0:02:59]} 4. Nc3 {[%clk 0:03:00]}  Bb4 {[%clk 0:02:59]} 5. Qa4+ {[%clk 0:02:58]}  Nc6 {[%clk 0:02:59]} 6. Bg5 {[%clk 0:02:59]}  dxc4 {[%clk 0:02:59]} 7. e3 {[%clk 0:02:55]}  Qd5 {[%clk 0:02:58]} 8. Bxf6 {[%clk 0:02:46]}  gxf6 {[%clk 0:02:57]} 9. a3 {[%clk 0:02:33]}  Bxc3+ {[%clk 0:02:54]} 10. bxc3 {[%clk 0:02:34]}  b5 {[%clk 0:02:55]} 11. Qc2 {[%clk 0:02:34]}  Bb7 {[%clk 0:02:52]} 12. e4 {[%clk 0:02:32]}  Qd7 {[%clk 0:02:46]} 13. g3 {[%clk 0:02:26]}  Na5 {[%clk 0:02:36]} 14. Bg2 {[%clk 0:02:22]}  Nb3 {[%clk 0:02:37]} 15. Rd1 {[%clk 0:02:19]}  Qe7 {[%clk 0:02:33]} 16. O-O {[%clk 0:02:15]}  Qxa3 {[%clk 0:02:30]} 17. d5 {[%clk 0:02:15]}  O-O-O {[%clk 0:02:29]} 18. Nd2 {[%clk 0:01:48]}  Nxd2 {[%clk 0:02:07]} 19. Qxd2 {[%clk 0:01:49]}  Qc5 {[%clk 0:02:01]} 20. Qf4 {[%clk 0:01:39]}  f5 {[%clk 0:01:46]} 21. exf5 {[%clk 0:01:27]}  Bxd5 {[%clk 0:01:37]} 22. fxe6 {[%clk 0:01:26]}  Bxg2 {[%clk 0:01:35]} 23. Kxg2 {[%clk 0:01:26]}  Qc6+ {[%clk 0:01:34]} 24. Kg1 {[%clk 0:01:21]}  fxe6 {[%clk 0:01:30]} 25. Rde1 {[%clk 0:01:16]}  Rhe8 {[%clk 0:01:25]} 26. Re5 {[%clk 0:01:15]}  Rd5 {[%clk 0:01:23]} 27. Re3 {[%clk 0:01:15]}  Kb7 {[%clk 0:01:20]} 28. Rfe1 {[%clk 0:01:14]}  a5 {[%clk 0:01:14]} 29. Qf7 {[%clk 0:01:13]}  a4 {[%clk 0:01:02]} 30. Qxh7 {[%clk 0:01:05]}  a3 {[%clk 0:01:02]} 31. Ra1 {[%clk 0:01:02]}  Qd6 {[%clk 0:01:00]} 32. Ree1 {[%clk 0:00:54]}  Qc5 {[%clk 0:00:48]} 33. Qe4 {[%clk 0:00:45]}  Kb6 {[%clk 0:00:43]} 34. Qg4 {[%clk 0:00:40]}  Rf5 {[%clk 0:00:33]} 35. Re2 {[%clk 0:00:32]}  Ref8 {[%clk 0:00:33]} 36. Raa2 {[%clk 0:00:31]}  R8f6 {[%clk 0:00:20]} 37. Qe4 {[%clk 0:00:31]}  Rd5 {[%clk 0:00:19]} 38. Qg4 {[%clk 0:00:28]}  Rd1+ {[%clk 0:00:18]} 39. Kg2 {[%clk 0:00:29]}  Qd5+ {[%clk 0:00:17]} 40. f3 {[%clk 0:00:27]}  Rd3 {[%clk 0:00:16]} 41. Rf2 {[%clk 0:00:27]}  Qc5 {[%clk 0:00:14]} 42. Qg7 {[%clk 0:00:20]}  Rf8 {[%clk 0:00:09]} 43. h4 {[%clk 0:00:17]}  e5 {[%clk 0:00:07]} 44. Qh6+ {[%clk 0:00:15]}  c6 {[%clk 0:00:05]} 45. Qc1 {[%clk 0:00:12]}  Ra8 {[%clk 0:00:04]} 46. h5 {[%clk 0:00:11]}  Qd6 {[%clk 0:00:03]} 47. Qg5 {[%clk 0:00:10]}  Qc5 {[%clk 0:00:03]} 48. h6 {[%clk 0:00:10]}  Rxc3 {[%clk 0:00:03]} 49. Qg7 {[%clk 0:00:10]}  Qf8 {[%clk 0:00:03]} 50. Qg6 {[%clk 0:00:10]}  Rd3 {[%clk 0:00:03]} 51. Qe4 {[%clk 0:00:09]}  Qc5 {[%clk 0:00:03]} 52. h7 {[%clk 0:00:09]}  Rdd8 {[%clk 0:00:03]} 53. Qg6 {[%clk 0:00:08]}  Rh8 {[%clk 0:00:03]} 54. Rfe2 {[%clk 0:00:08]}  Qe7 {[%clk 0:00:03]} 55. Qf5 {[%clk 0:00:08]}  Qxh7 {[%clk 0:00:03]} 56. Qxe5 {[%clk 0:00:08]}  Qh1+ {[%clk 0:00:03]} 57. Kf2 {[%clk 0:00:08]}  Rh2+ {[%clk 0:00:04]} 58. Ke3 {[%clk 0:00:08]}  Qg1+ {[%clk 0:00:04]} 59. Kf4 {[%clk 0:00:09]}  Rxe2 {[%clk 0:00:05]} 60. Qxe2 {[%clk 0:00:08]}  Qc5 {[%clk 0:00:04]} 61. Qe3 {[%clk 0:00:09]}  Qxe3+ {[%clk 0:00:04]} 62. Kxe3 {[%clk 0:00:09]}  b4 {[%clk 0:00:05]} 63. Kd4 {[%clk 0:00:10]}  Kb5 {[%clk 0:00:06]} 64. f4 {[%clk 0:00:09]}  b3 {[%clk 0:00:07]} 65. Ra1 {[%clk 0:00:09]}  b2 {[%clk 0:00:07]} 0-1


[Site "https://www.chess.com"]

[Event "Titled Tuesday Blitz June 21 Late 2022"]
[White "Garriga Cazorla, Pere"]
[Black "Fedoseev, Vladimir"]
[WhiteFideId "32011601"]
[BlackFideId "24130737"]
[WhiteElo "2433"]
[BlackElo "2726"]
[Result "0-1"]
[Round "05"]
[TimeControl "180+1"]
[Date "2022.06.21"]
[WhiteClock "0:00:06"]
[BlackClock "0:00:06"]

1. d4 {[%clk 0:02:45]}  Nf6 {[%clk 0:02:57]} 2. c4 {[%clk 0:02:45]}  e6 {[%clk 0:02:57]} 3. Nc3 {[%clk 0:02:45]}  Bb4 {[%clk 0:02:55]} 4. Qc2 {[%clk 0:02:43]}  d5 {[%clk 0:02:53]} 5. cxd5 {[%clk 0:02:43]}  exd5 {[%clk 0:02:54]} 6. Bg5 {[%clk 0:02:42]}  h6 {[%clk 0:02:54]} 7. Bh4 {[%clk 0:02:42]}  Qe7 {[%clk 0:02:54]} 8. e3 {[%clk 0:02:40]}  c5 {[%clk 0:02:41]} 9. Bb5+ {[%clk 0:02:34]}  Nc6 {[%clk 0:02:35]} 10. Ne2 {[%clk 0:02:34]}  g5 {[%clk 0:02:22]} 11. Bg3 {[%clk 0:02:30]}  O-O {[%clk 0:02:04]} 12. O-O {[%clk 0:02:28]}  cxd4 {[%clk 0:02:02]} 13. exd4 {[%clk 0:02:11]}  Be6 {[%clk 0:01:59]} 14. a3 {[%clk 0:02:03]}  Bxc3 {[%clk 0:01:53]} 15. bxc3 {[%clk 0:02:03]}  Rac8 {[%clk 0:01:52]} 16. Bd3 {[%clk 0:02:01]}  Ne4 {[%clk 0:01:43]} 17. Rfe1 {[%clk 0:01:55]}  Bf5 {[%clk 0:01:24]} 18. f3 {[%clk 0:01:49]}  Nxg3 {[%clk 0:01:21]} 19. Nxg3 {[%clk 0:01:49]}  Bxd3 {[%clk 0:01:22]} 20. Qxd3 {[%clk 0:01:48]}  Qf6 {[%clk 0:01:22]} 21. Rab1 {[%clk 0:01:32]}  b6 {[%clk 0:01:18]} 22. Rb5 {[%clk 0:01:23]}  Rfd8 {[%clk 0:01:12]} 23. Qf5 {[%clk 0:01:03]}  Qxf5 {[%clk 0:01:04]} 24. Nxf5 {[%clk 0:01:04]}  h5 {[%clk 0:00:56]} 25. h4 {[%clk 0:01:00]}  gxh4 {[%clk 0:00:53]} 26. Kh2 {[%clk 0:00:55]}  f6 {[%clk 0:00:40]} 27. Re6 {[%clk 0:00:46]}  Kf7 {[%clk 0:00:37]} 28. Rd6 {[%clk 0:00:45]}  Ne7 {[%clk 0:00:33]} 29. Nxe7 {[%clk 0:00:21]}  Kxe7 {[%clk 0:00:31]} 30. Rdxd5 {[%clk 0:00:21]}  Rxd5 {[%clk 0:00:30]} 31. Rxd5 {[%clk 0:00:22]}  Rxc3 {[%clk 0:00:30]} 32. a4 {[%clk 0:00:23]}  Ra3 {[%clk 0:00:28]} 33. Rxh5 {[%clk 0:00:23]}  Rxa4 {[%clk 0:00:28]} 34. Rxh4 {[%clk 0:00:23]}  b5 {[%clk 0:00:28]} 35. Kg3 {[%clk 0:00:23]}  b4 {[%clk 0:00:26]} 36. Kf4 {[%clk 0:00:20]}  a5 {[%clk 0:00:24]} 37. Rh7+ {[%clk 0:00:20]}  Kd6 {[%clk 0:00:24]} 38. Rb7 {[%clk 0:00:16]}  Ra2 {[%clk 0:00:16]} 39. g4 {[%clk 0:00:16]}  Rd2 {[%clk 0:00:13]} 40. Kf5 {[%clk 0:00:16]}  Rxd4 {[%clk 0:00:12]} 41. f4 {[%clk 0:00:11]}  Kc6 {[%clk 0:00:11]} 42. Rb8 {[%clk 0:00:11]}  a4 {[%clk 0:00:11]} 43. g5 {[%clk 0:00:11]}  fxg5 {[%clk 0:00:10]} 44. fxg5 {[%clk 0:00:12]}  b3 {[%clk 0:00:09]} 45. g6 {[%clk 0:00:12]}  Rd7 {[%clk 0:00:09]} 46. Kf6 {[%clk 0:00:11]}  Kc5 {[%clk 0:00:08]} 47. g7 {[%clk 0:00:09]}  Rxg7 {[%clk 0:00:08]} 48. Kxg7 {[%clk 0:00:10]}  Kc4 {[%clk 0:00:08]} 49. Rc8+ {[%clk 0:00:08]}  Kb4 {[%clk 0:00:07]} 50. Rb8+ {[%clk 0:00:09]}  Kc3 {[%clk 0:00:07]} 51. Kf6 {[%clk 0:00:06]}  b2 {[%clk 0:00:06]} 0-1


[Site "https://www.chess.com"]

[Event "Titled Tuesday Blitz June 21 Late 2022"]
[White "Golubev, Mikhail"]
[Black "Tica, Sven"]
[WhiteFideId "14100983"]
[BlackFideId "14526948"]
[WhiteElo "2514"]
[BlackElo "2632"]
[Result "1-0"]
[Round "05"]
[TimeControl "180+1"]
[Date "2022.06.22"]
[WhiteClock "0:01:37"]
[BlackClock "0:02:16"]

1. e4 {[%clk 0:03:00]}  c5 {[%clk 0:03:00]} 2. Nf3 {[%clk 0:03:00]}  d6 {[%clk 0:02:59]} 3. d4 {[%clk 0:03:00]}  cxd4 {[%clk 0:02:59]} 4. Nxd4 {[%clk 0:03:00]}  Nf6 {[%clk 0:03:00]} 5. Nc3 {[%clk 0:03:01]}  a6 {[%clk 0:03:00]} 6. Bc4 {[%clk 0:03:00]}  e6 {[%clk 0:02:59]} 7. Bb3 {[%clk 0:03:00]}  Be7 {[%clk 0:02:58]} 8. f4 {[%clk 0:02:58]}  Nbd7 {[%clk 0:02:59]} 9. Be3 {[%clk 0:02:44]}  Nc5 {[%clk 0:02:58]} 10. Qf3 {[%clk 0:02:42]}  Qa5 {[%clk 0:02:54]} 11. O-O {[%clk 0:02:36]}  Bd7 {[%clk 0:02:43]} 12. e5 {[%clk 0:02:31]}  Ng8 {[%clk 0:02:29]} 13. f5 {[%clk 0:02:03]}  dxe5 {[%clk 0:02:17]} 14. fxe6 {[%clk 0:01:56]}  e4 {[%clk 0:02:17]} 15. exf7+ {[%clk 0:01:39]}  Kd8 {[%clk 0:02:16]} 16. f8=Q+ {[%clk 0:01:37]} 1-0


[Site "https://www.chess.com"]

[Event "Titled Tuesday Blitz June 21 Late 2022"]
[White "Guz, Ari"]
[Black "Muradli, Mahammad"]
[WhiteFideId "2825759"]
[BlackFideId "13409301"]
[WhiteElo "1913"]
[BlackElo "2611"]
[Result "1-0"]
[Round "05"]
[TimeControl "180+1"]
[Date "2022.06.21"]
[WhiteClock "0:00:12"]
[BlackClock "0:00:01"]

1. e4 {[%clk 0:03:00]}  d6 {[%clk 0:02:59]} 2. d4 {[%clk 0:03:00]}  Nf6 {[%clk 0:03:00]} 3. Nc3 {[%clk 0:03:00]}  g6 {[%clk 0:03:01]} 4. Nf3 {[%clk 0:03:00]}  Bg7 {[%clk 0:03:01]} 5. h3 {[%clk 0:03:01]}  O-O {[%clk 0:03:02]} 6. Be3 {[%clk 0:03:01]}  a6 {[%clk 0:03:01]} 7. a4 {[%clk 0:03:01]}  Nc6 {[%clk 0:03:01]} 8. Qd2 {[%clk 0:03:01]}  e5 {[%clk 0:03:00]} 9. d5 {[%clk 0:03:00]}  Nd4 {[%clk 0:03:00]} 10. Nxd4 {[%clk 0:02:57]}  exd4 {[%clk 0:03:01]} 11. Bxd4 {[%clk 0:02:57]}  Nxe4 {[%clk 0:02:56]} 12. Nxe4 {[%clk 0:02:55]}  Qh4 {[%clk 0:02:56]} 13. Bxg7 {[%clk 0:02:38]}  Qxe4+ {[%clk 0:02:51]} 14. Be2 {[%clk 0:02:37]}  Qxg2 {[%clk 0:02:37]} 15. O-O-O {[%clk 0:02:23]}  Kxg7 {[%clk 0:02:36]} 16. Qd4+ {[%clk 0:02:24]}  Kg8 {[%clk 0:01:57]} 17. Rdg1 {[%clk 0:02:25]}  c5 {[%clk 0:01:57]} 18. dxc6 {[%clk 0:01:08]}  Qxc6 {[%clk 0:01:43]} 19. Bd3 {[%clk 0:01:08]}  Qc5 {[%clk 0:01:22]} 20. Qf4 {[%clk 0:01:04]}  Be6 {[%clk 0:01:18]} 21. h4 {[%clk 0:00:55]}  Qe5 {[%clk 0:01:10]} 22. Qh6 {[%clk 0:00:53]}  Qg7 {[%clk 0:00:19]} 23. Qf4 {[%clk 0:00:52]}  Qe5 {[%clk 0:00:19]} 24. Qh6 {[%clk 0:00:52]}  Bd5 {[%clk 0:00:06]} 25. Rh3 {[%clk 0:00:19]}  Rae8 {[%clk 0:00:05]} 26. h5 {[%clk 0:00:16]}  Qg7 {[%clk 0:00:06]} 27. Qf4 {[%clk 0:00:16]}  Re5 {[%clk 0:00:05]} 28. hxg6 {[%clk 0:00:15]}  fxg6 {[%clk 0:00:05]} 29. Qh4 {[%clk 0:00:16]}  Rf7 {[%clk 0:00:01]} 30. Qd8+ {[%clk 0:00:15]}  Qf8 {[%clk 0:00:02]} 31. Qh4 {[%clk 0:00:15]}  Qg7 {[%clk 0:00:01]} 32. Qd8+ {[%clk 0:00:14]}  Qf8 {[%clk 0:00:02]} 33. Qb6 {[%clk 0:00:13]}  Re6 {[%clk 0:00:01]} 34. Qd4 {[%clk 0:00:13]}  Bc6 {[%clk 0:00:01]} 35. Bxg6 {[%clk 0:00:12]} 1-0


[Site "https://www.chess.com"]